Cogmind - Beta 15 *** ADVENTURER MODE // 2025.05.10 @ 12:54:32 Player: Jefffff Result: Destroyed by Disruptor 6a with Arc Projector Performance ------------- Evolutions (5) 2500 Regions Visited (6) 1200 Robots Destroyed (128) 640 Value Destroyed (5136) 5136 Prototype IDs (25) 500 Alien Tech Used (0) 0 Bonus (2272) 2272 TOTAL SCORE: 12248 Bonus ------- High Alert Combat Kills 379 Follower Combat Kills 413 Entered Garrisons 200 Used RIF Installer 500 Registered with UFD 300 Met Optimus in HQ 500 Friendly Fire -20 Cogmind --------- Core Integrity 0/1000 Matter 124/300 Energy 40/290 System Corruption 54% Temperature Cool (0) Movement Rolling (86) Location -5/Factory Parts ------- > --- POWER (2) -------- Improved Deuterium Engine > --- PROPULSION (6) --- Wheel Wheel Compact Wheel > --- UTILITY (6) ------ Advanced Heat Sink Structural Scanner Improved Signal Interpreter Improved Heavy Armor Plating > --- WEAPON (3) ------- (None) > --- INVENTORY (5) ---- Light Fission Core Active Sensor Suite Advanced Terrain Scan Processor Peak State ------------ > --- POWER ------------ Micro Fission Core Micro Fission Core > --- PROPULSION ------- Carbon-fiber Leg Carbon-fiber Leg Carbon-fiber Leg Flexi-carbon Leg Flexi-carbon Leg Improved VSS Leg > --- UTILITY ---------- Advanced Cooling System Large Storage Unit Advanced Recoil Stabilizer Gun Armor Focal Shield Focal Shield > --- WEAPON ----------- Advanced Plasma Cannon Gauss Rifle Mass Driver > --- INVENTORY -------- Light Angular Momentum Engine Wheel Compact Wheel Improved Cooling System Humpback Enhanced Optical Array Experimental Signal Interpreter Advanced Terrain Scan Processor Improved Medium Armor Plating High-powered Tractor Beam Autogun Improved Remote Datajack System Spiker Improved Plasma Cutter [Rating: 90] Favorites ----------- Power Improved Deuterium Engine Engine Improved Deuterium Engine Power Core Fission Core Propulsion Armored Wheel Treads Light Treads Leg Carbon-fiber Leg Wheel Armored Wheel Flight Unit VTOL Module Utility Large Storage Unit Device Cooling System Storage Large Storage Unit Processor Improved Signal Interpreter Hackware Improved System Shield Protection Gun Armor Weapon Battle Rifle Energy Gun Particle Gun Energy Cannon Particle Cannon Ballistic Gun Battle Rifle Ballistic Cannon Magnetic Acceleration Cannon Launcher Smartbomb Launcher Special Weapon Improved Remote Datajack Impact Weapon Heavy Mace Slashing Weapon Power Sword Build | -11 -10 -10 -9 -6 -6 -5 ------- Run | Yrd Mat Sub Scr Fac Gar Fac Slots Evolved 10 | . . . . 8 . 2 Power 1 | . . . . 1 . . Propulsion 4 | . . . . 4 . . Utility 4 | . . . . 3 . 1 Weapon 1 | . . . . . . 1 Parts Attached 152 | 6 17 5 11 13 25 75 Power 25 | 1 4 1 4 2 5 8 Engine 16 | 1 2 1 2 1 5 4 Core 9 | . 2 . 2 1 . 4 Reactor . | . . . . . . . Propulsion 53 | 2 6 1 1 5 8 30 Treads 5 | . . . . . 3 2 Leg 28 | 2 5 . . . 5 16 Wheel 19 | . 1 1 1 5 . 11 Hover . | . . . . . . . Flight 1 | . . . . . . 1 Utility 39 | 1 4 . 1 3 7 23 Device 23 | . 1 . . 1 4 17 Storage 4 | 1 2 . . . . 1 Processor 1 | . . . . . . 1 Hackware 2 | . . . 1 . 1 . Protection 9 | . 1 . . 2 2 4 Artifact . | . . . . . . . Weapon 35 | 2 3 3 5 3 5 14 Energy Gun 4 | 1 1 . . . 1 1 Energy Cannon 2 | . . . . 1 . 1 Ballistic Gun 17 | 1 2 1 4 . 4 5 Ballistic Cannon 6 | . . 2 1 1 . 2 Launcher 1 | . . . . . . 1 Special Weapon 3 | . . . . . . 3 Impact Weapon 1 | . . . . . . 1 Slashing Weapon 1 | . . . . 1 . . Piercing Weapon . | . . . . . . . Special Melee Weapon . | . . . . . . . Unidentified Prototypes 2 | . . . 1 . . 1 Corrupted Parts 1 | . . . . . . 1 System Corruption 1 | . . . . . . 1 Parts Lost 58 | . . 3 . . 19 36 Power 9 | . . 2 . . 3 4 Propulsion 28 | . . 1 . . 8 19 Utility 9 | . . . . . 3 6 Weapon 12 | . . . . . 5 7 Highest Loss Streak 14 | . . 2 . . 9 14 To Critical Strikes . | . . . . . . . Average Backups 13 | 2 10 14 13 11 13 14 Power 1 | . 1 1 1 . . 1 Propulsion 1 | 2 2 2 2 . . 1 Utility 7 | . 3 6 6 6 9 8 Weapon 2 | . 2 2 2 2 2 1 Tool/Special . | . . . . . . . Unused Backups 65 | . 13 3 22 1 3 23 Power 11 | . 2 . 5 . . 4 Propulsion 9 | . 5 1 1 . . 2 Utility 29 | . 1 2 10 1 1 14 Weapon 12 | . 5 . 6 . 1 . Tool/Special 4 | . . . . . 1 3 Average Slot Usage (%) 90 | . 98 96 89 88 82 90 Engine 6 | . 10 10 3 4 8 6 Core 5 | . 3 . 9 5 2 4 Treads 1 | . . . . . 7 3 Leg 8 | . 18 4 . . 8 21 Wheel 13 | . 9 23 18 24 9 3 Device 9 | . 9 14 6 4 3 15 Storage 10 | . 14 14 14 5 5 4 Hackware 4 | . . . 7 5 7 1 Protection 4 | . 3 . . 10 12 7 Energy Gun 3 | . 14 8 . . . 1 Ballistic Gun 11 | . 14 14 14 5 9 7 Ballistic Cannon 6 | . . 5 14 8 1 1 Peak Build Rating 90 | 6 14 15 33 65 67 90 Average Rating 40 | 4 11 14 25 63 53 76 On Entrance 27 | . 6 14 14 33 65 61 Naked Turns 2 | . . . . . . 2 Heaviest Build 249 | 12 35 35 42 68 69 249 Greatest Support 110 | 20 20 24 28 84 84 110 Greatest Overweight (x) 15 | 2 2 2 1 1 10 15 Average Overweight (x) 1 | . 1 1 1 . . 3 Largest Inventory Capacity 35 | 8 15 15 15 15 15 35 Average Capacity 15 | 6 11 15 15 15 15 20 Most Carried 32 | 5 15 15 15 15 15 32 Average Carried 14 | 2 10 14 14 12 14 16 Final Capacity 15 | 8 15 15 15 15 15 5 Final Carried 15 | 5 15 15 15 15 15 5 Class Distribution -------------------- 39% | Mutant 21% | Hacker-Mutant 19% | Scavenger-Tank 8% | Scavenger-Mutant 5% | Hauler-Gunner 4% | Hacker-Tank Dominant Class ---------------- Mutant | -10/Materials Mutant | -10/Subcaves Hacker-Mutant | -9/Scraptown Scavenger-Tank | -6/Factory Scavenger-Mutant | -6/Garrison Scavenger-Tank | -5/Factory Resources | -11 -10 -10 -9 -6 -6 -5 ----------- Run | Yrd Mat Sub Scr Fac Gar Fac Matter Collected 5123 | 89 495 266 238 569 1096 2370 Remotely 648 | . . . . . . 648 Salvage Created 5354 | . 625 355 169 715 950 2540 Parts 252 | . 39 21 6 29 35 122 Haulers Intercepted 3 | . 2 . . . . 1 Recyclers Shooed 6 | . 1 . . . . 5 Parts Field Recycled . | . . . . . . . Retrieved Matter . | . . . . . . . Parts Self-Destructed 18 | . . 18 . . . . Prevented . | . . . . . . . Kills | -11 -10 -10 -9 -6 -6 -5 ------- Run | Yrd Mat Sub Scr Fac Gar Fac Combat Hostiles Destroyed 90 | . 12 10 4 9 19 36 Guns 61 | . 11 10 1 1 14 24 Cannons 24 | . . . 3 7 4 10 AOE 2 | . . . . 1 . 1 Classes Destroyed 18 | . 6 1 2 1 3 5 Worker 11 | . 1 . . 1 . 9 Builder 10 | . 1 . . 2 . 7 Hauler 3 | . 2 . . . . 1 Recycler 5 | . . . . 2 . 3 Mechanic 1 | . . . . . . 1 Operator 1 | . . . . . . 1 Watcher 7 | . 3 . . 2 . 2 Swarmer 20 | . 3 2 . 2 4 9 Cutter 3 | . . . . . . 3 Grunt 35 | . 9 . . 7 6 13 Brawler 2 | . . . . . 1 1 Sentry 6 | . . . . . 4 2 Specialist 4 | . . . . . . 4 Hunter 5 | . . . . . 4 1 Programmer 3 | . . . . . . 3 Subdweller 8 | . . 8 . . . . Federalist 2 | . . . 2 . . . Scrapper 2 | . . . 2 . . . Best Kill Streak 9 | . 4 2 2 6 4 9 Combat Bots Only 6 | . 3 2 2 3 4 6 Max Kills in Single Turn 3 | . 1 2 1 3 2 2 Gunslinging 1 | . . 1 . . 1 1 Exploded 1 | . . . . 1 . 1 Melee . | . . . . . . . Uniques/NPCs Destroyed . | . . . . . . . Combat | -11 -10 -10 -9 -6 -6 -5 -------- Run | Yrd Mat Sub Scr Fac Gar Fac Hostile Shots Fired 1091 | . 51 51 20 39 304 626 Missed 297 | . 16 15 4 14 81 167 Hits 794 | . 35 36 16 25 223 459 Melee 20 | . . . . . 6 14 Projectile 774 | . 35 36 16 25 217 445 AOE 5 | . . 2 . . . 3 Critical Strikes 35 | . 1 1 2 1 5 25 Part Disruptions 8 | . . . . . . 8 Damage Taken 10638 | . 325 680 184 363 2485 6601 Core 1410 | . 25 75 47 10 253 1000 Absorbed by Shields 25 | . . . . . 25 . Ignored by Resistances 3248 | . 99 181 52 97 674 2145 Regen/Repaired (Parts) 61 | . . . . . . 61 Core Remaining (%) 70 | 100 . . 41 . 69 . Volleys Fired 424 | . 45 47 11 29 106 186 Largest 4 | . 2 2 2 4 3 3 Hottest 177 | . 88 88 72 177 142 173 Shots Fired 880 | . 87 90 22 95 200 386 Gun 590 | . 87 76 11 29 137 250 Cannon 259 | . . 14 11 66 63 105 Launcher 3 | . . . . . . 3 Special 28 | . . . . . . 28 Kinetic 615 | . 45 57 22 66 162 263 Thermal 234 | . 42 33 . 29 38 92 Explosive 3 | . . . . . . 3 Electromagnetic . | . . . . . . . Robot Hit Streak 39 | . 10 14 6 16 39 30 Robot Miss Streak 4 | . 2 2 1 2 4 3 Penetration Max 1 | . . . . . 1 1 Secondary Targets 17 | . 6 2 . . 2 7 Max Gunslinging Chain 1 | . 1 1 . . 1 1 Shots Hit Robots 600 | . 65 54 14 59 132 276 Core Hits 258 | . 30 21 6 31 51 119 Critical Kills 5 | . . . . . . 5 Critical Parts Destroyed 4 | . . . . . . 4 Critical Strikes 27 | . 3 . . 2 2 20 Burn 6 | . 3 . . . 1 2 Meltdown 2 | . . . . . . 2 Destroy 7 | . . . . . . 7 Blast 11 | . . . . 1 1 9 Sever 1 | . . . . 1 . . Melee Attacks 14 | . . . . 2 8 4 Impact 4 | . . . . . . 4 Slashing 10 | . . . . 2 8 . Piercing . | . . . . . . . Sneak Attacks . | . . . . . . . Combat Hostiles . | . . . . . . . Follow-up Attacks . | . . . . . . . Damage Inflicted 13572 | . 960 855 382 1690 2671 7014 Guns 7945 | . 960 810 123 347 1922 3783 Cannons 4695 | . . 45 259 979 749 2663 Explosions 825 | . . . . 295 . 530 Melee 69 | . . . . 69 . . Ramming 38 | . . . . . . 38 Kinetic 8735 | . 461 461 382 891 2007 4533 Thermal 4200 | . 499 394 . 730 664 1913 Explosive 530 | . . . . . . 530 Electromagnetic . | . . . . . . . Impact . | . . . . . . . Slashing 69 | . . . . 69 . . Piercing . | . . . . . . . Highest Corruption 54 | . 1 1 . . 23 54 Average Corruption 12 | . 1 1 . . 17 22 Corruption Purged . | . . . . . . . Corruption Blocked . | . . . . . . . Effects 155 | . 4 4 . . 47 100 Message Errors 23 | . 1 1 . . 14 7 Matter Fused 39 | . 1 1 . . 10 27 Heat Flow Errors 8 | . . . . . 3 5 Energy Discharges 21 | . 2 1 . . 5 13 Parts Rejected 4 | . . . . . . 4 Data Loss (minor) 17 | . . 1 . . 5 11 Data Loss (major) 4 | . . . . . 1 3 Misfires 6 | . . . . . 2 4 Alerts 1 | . . . . . 1 . Misdirections 12 | . . . . . 1 11 Weapon Failures 20 | . . . . . 5 15 Overload Shots . | . . . . . . . Overflow Damage 262 | . . . . 180 . 82 Projectiles 37 | . . . . . . 37 Explosions 225 | . . . . 180 . 45 Melee . | . . . . . . . Knockbacks 28 | . . . 2 7 4 15 Impact 1 | . . . . . . 1 Kinetic 25 | . . . 2 7 2 14 Secondary 2 | . . . . . 2 . Self-Inflicted Damage 8 | . . . . . . 8 Shots . | . . . . . . . Rammed 5 | . . . . . . 5 Targets Rammed 6 | . . . . . . 6 Kicked 1 | . . . . . . 1 Crushed . | . . . . . . . Highest Temperature 375 | . 375 . 285 276 373 362 Average Temperature 98 | . 106 . 115 84 115 81 Received Heat Transfer 2460 | . 222 54 188 207 586 1203 Effects 5 | . . . . . 5 . Energy Bleed 2 | . . . . . 2 . Interference 3 | . . . . . 3 . Siege Activations . | . . . . . . . Martial Activations . | . . . . . . . Shielding Activations . | . . . . . . . Robots Disrupted . | . . . . . . . Combat Hostiles . | . . . . . . . Robots Corrupted . | . . . . . . . Combat Hostiles . | . . . . . . . Parts Fried . | . . . . . . . Impact Corruptions . | . . . . . . . Robots Melted 4 | . 1 . . . 1 2 Combat Hostiles 3 | . 1 . . . 1 1 Parts Melted 11 | . 3 1 . . 1 6 Heat Transferred 7792 | . 1517 925 . 927 1415 3008 Parts Sabotaged . | . . . . . . . Parts Stolen . | . . . . . . . Parts Stripped . | . . . . . . . Power Chain Reactions . | . . . . . . . Alert | -11 -10 -10 -9 -6 -6 -5 ------- Run | Yrd Mat Sub Scr Fac Gar Fac Maximum Alert Level 3 | . . . . 1 3 3 Low Security (%) 28 | 100 100 . . 36 11 . Level 1 32 | . . . . 63 26 42 Level 2 33 | . . . . . 56 46 Level 3 5 | . . . . . 5 10 Level 4 . | . . . . . . . Level 5 . | . . . . . . . High Security . | . . . . . . . Max Security . | . . . . . . . Peak Influence 778 | . 116 . . 318 744 778 Initial 338 | . . . . . 177 338 Average 334 | . 30 . . 168 424 480 Influence Increases 3508 | . 363 50 . 518 817 1760 Destroy 0b10 Robot/C 1780 | . 240 40 . 180 380 940 Destroy 0b10 Robot/NC 195 | . 35 . . 35 . 125 Destroy Leader 300 | . 60 10 . 24 40 166 Allied During Kill 13 | . . . . . . 13 Successful Hack 73 | . 13 . . 20 18 22 Disable Machine 108 | . . . . 36 . 72 Anti-Garrison Action 300 | . . . . 150 150 . Destroy Structure 274 | . . . . 13 109 152 Lose Combat Pursuer 465 | . 15 . . 60 120 270 Influence Decreases 3020 | . 363 50 . 230 361 2016 Entered New Map 517 | . . . . . 111 406 Time Decay 1783 | . 363 40 . 230 . 1150 Lost Part 560 | . . 10 . . 190 360 Lost Ally 160 | . . . . . 60 100 Squads Dispatched 14 | . 1 . . 3 . 10 Investigation 1 | . 1 . . . . . Extermination 3 | . . . . . . 3 Reinforcement 9 | . . . . 2 . 7 Assault 1 | . . . . 1 . . Garrison . | . . . . . . . Intercept . | . . . . . . . Searches Triggered . | . . . . . . . Construction Impeded 1 | . . . . . . 1 Haulers Reinforced 1 | . . . . 1 . . Active Scanning Responses . | . . . . . . . Cargo Convoy Interrupts 1 | . . . . . . 1 Stealth | -11 -10 -10 -9 -6 -6 -5 --------- Run | Yrd Mat Sub Scr Fac Gar Fac Distress Signals 7 | . 3 . . . . 4 Communications Jammed . | . . . . . . . Distress Signals . | . . . . . . . Times Spotted 180 | . 16 13 9 15 25 102 Peak Tracking Total 12 | . 3 2 3 4 6 12 Tactical Retreats 20 | . 1 1 . 2 4 12 Traps | -11 -10 -10 -9 -6 -6 -5 ------- Run | Yrd Mat Sub Scr Fac Gar Fac Traps Triggered 7 | . 2 1 . 1 2 1 Indirectly . | . . . . . . . Trap Hack Attempts . | . . . . . . . Triggered . | . . . . . . . Disarmed 4 | . 4 . . . . . Reprogrammed 4 | . 4 . . . . . Reused . | . . . . . . . Traps Extracted . | . . . . . . . Installed . | . . . . . . . Triggered . | . . . . . . . Machines | -11 -10 -10 -9 -6 -6 -5 ---------- Run | Yrd Mat Sub Scr Fac Gar Fac Machines Disabled 19 | . . 1 1 5 4 8 Max in Single Turn 4 | . . 1 1 4 2 2 Garrison Access 1 | . . . . 1 . . Garrison Relay 2 | . . . . . 2 . Phase Generator 1 | . . . . . 1 . Machines Repaired . | . . . . . . . Machines Dismantled . | . . . . . . . Machines Sabotaged . | . . . . . . . Overloaded Fab Kills . | . . . . . . . Hacking | -11 -10 -10 -9 -6 -6 -5 --------- Run | Yrd Mat Sub Scr Fac Gar Fac Machines Accessed 21 | . 7 1 5 3 2 3 Terminals 10 | . 7 . . . 2 1 Fabricators 2 | . . . . 1 . 1 Repair Stations 1 | . . . . . . 1 Recycling Units . | . . . . . . . Scanalyzers 1 | . . . . 1 . . Garrison Access 1 | . . . . 1 . . Total Hacks 66 | . 19 9 21 7 2 8 Successful 46 | . 8 9 21 4 2 2 Failed 20 | . 11 . . 3 . 6 Catastrophic 2 | . . . . 1 . 1 Database Lockouts . | . . . . . . . Manual 7 | . 6 . 1 . . . Terminals 23 | . 19 . . . 2 2 Fabricators 4 | . . . . 1 . 3 Repair Stations 3 | . . . . . . 3 Recycling Units . | . . . . . . . Scanalyzers 5 | . . . . 5 . . Garrison Access 1 | . . . . 1 . . Terminal Hacks 40 | . 8 9 21 . 2 . Record 24 | . 2 8 14 . . . Part Schematic 1 | . 1 . . . . . Robot Analysis 7 | . 1 . 6 . . . Open Door 1 | . . . . . 1 . Emergency Access Points 1 | . . . . . 1 . Disarm Traps 1 | . 1 . . . . . Reprogram Traps 1 | . 1 . . . . . Maintenance Status 1 | . 1 . . . . . Recall Reinforcements 1 | . 1 . . . . . Proto ID Catalog 2 | . . 1 1 . . . Fabricator Hacks . | . . . . . . . Repair Station Hacks 2 | . . . . . . 2 Scan Component 1 | . . . . . . 1 Repair 1 | . . . . . . 1 Recycling Unit Hacks . | . . . . . . . Scanalyzer 3 | . . . . 3 . . Insert Component 2 | . . . . 2 . . Analyze 1 | . . . . 1 . . Garrison Access Hacks 1 | . . . . 1 . . Unlock Access 1 | . . . . 1 . . Unauthorized Hacks . | . . . . . . . Terminals . | . . . . . . . Fabricators . | . . . . . . . Repair Stations . | . . . . . . . Recycling Units . | . . . . . . . Scanalyzers . | . . . . . . . Garrison Access . | . . . . . . . Data Cores Recovered . | . . . . . . . Used . | . . . . . . . Hacking Detections 12 | . 6 . . 2 1 3 Full Trace Events 1 | . 1 . . . . . Feedback Events . | . . . . . . . Feedback Blocked . | . . . . . . . Robot Schematics Acquired . | . . . . . . . Robots Built . | . . . . . . . Authchips . | . . . . . . . Time . | . . . . . . . Total Robot Build Rating . | . . . . . . . Part Schematics Acquired 2 | . 1 . . 1 . . Parts Built . | . . . . . . . Authchips . | . . . . . . . Time . | . . . . . . . Total Part Build Rating . | . . . . . . . Parts Repaired 1 | . . . . . . 1 Time 31 | . . . . . . 31 Parts Recycled . | . . . . . . . Recycled Matter . | . . . . . . . Retrieved Matter . | . . . . . . . Retrieved Components . | . . . . . . . Parts Scanalyzed 1 | . . . . 1 . . Part Schematics Acquired 1 | . . . . 1 . . Parts Damaged 1 | . . . . 1 . . Bothacking | -11 -10 -10 -9 -6 -6 -5 ------------ Run | Yrd Mat Sub Scr Fac Gar Fac Used RIF Installer 1 | . . . . . 1 . Robots Hacked 2 | . . . . . . 2 Non-combat . | . . . . . . . Combat 2 | . . . . . . 2 Robot Hacks Applied 2 | . . . . . . 2 parse_system 2 | . . . . . . 2 Relay Couplers Released 8 | . . . . 1 7 . Machine Destruction 8 | . . . . 1 7 . Fabnet Peak Effective % . | . . . . . . . Robots Rewired 9 | . . . . . 3 6 Allies Hacked . | . . . . . . . Hacks Repelled . | . . . . . . . Allies | -11 -10 -10 -9 -6 -6 -5 -------- Run | Yrd Mat Sub Scr Fac Gar Fac Total Allies 10 | . . . 1 . 3 6 Largest Group 3 | . . . 1 . 3 3 Highest-Rated Group 150 | . . . 50 . 143 150 Highest-Rated Ally 142 | . . . 50 . 51 142 Total Orders 1 | . . . 1 . . . ROAM 1 | . . . 1 . . . Ally Attacks 53 | . . . 4 . 10 39 Total Damage 1597 | . . . 121 . 166 1310 Kills 13 | . . . 1 . . 12 Allies Corrupted 1 | . . . . . . 1 Allies Melted 3 | . . . 3 . . . Intel | -11 -10 -10 -9 -6 -6 -5 ------- Run | Yrd Mat Sub Scr Fac Gar Fac Active Infowar (turns) 17 | . . . . . . 17 Structural 17 | . . . . . . 17 Robot Analysis Total 7 | . 1 . 6 . . . Derelict Logs Recovered . | . . . . . . . Drone Launches . | . . . . . . . Drone Recoveries . | . . . . . . . Exploration | -11 -10 -10 -9 -6 -6 -5 ------------- Run | Yrd Mat Sub Scr Fac Gar Fac Turns Passed 9779 | 59 1043 1160 3369 651 1181 2316 Spaces Moved 6120 | 48 701 880 2603 527 496 865 Core 26 | 20 . . . . 2 4 Treads 227 | . . . . . 227 . Legs 830 | 28 180 . . . . 622 Wheels 5037 | . 521 880 2603 527 267 239 Hover . | . . . . . . . Flight . | . . . . . . . Fastest Speed 50 | 50 105 105 105 92 96 50 Average Speed 124 | 95 116 109 111 100 156 179 Slowest Speed 550 | 150 120 120 115 108 550 325 Overloaded Moves . | . . . . . . . Propulsion Burnouts . | . . . . . . . Robots Hopped 9 | . . . 9 . . . Potential Cave-ins 9 | . . . . . 9 . Cave-ins Triggered 1 | . . . . . 1 . Exploration Rate (%) 43 | 5 88 46 90 12 50 16 Regions Visited 6 Branch Regions 2 Pre-discovered Areas . | . . . . . . . Known Exits Taken 1 | . . . . 1 . . Unknown Exits Taken 4 | 1 1 1 1 . . . Scrap Searched 12 | . . 9 3 . . . Spaces Dug 15 | . . . . 1 11 3 Terrain Destroyed 183 | . . . 2 14 85 82 Melee 7 | . . . . . 6 1 Projectile 44 | . . . 2 2 6 34 AOE 131 | . . . . 12 72 47 Terrain Rammed . | . . . . . . . Walls Destroyed . | . . . . . . . Machines Disabled . | . . . . . . . Actions | -11 -10 -10 -9 -6 -6 -5 --------- Run | Yrd Mat Sub Scr Fac Gar Fac Total 7568 | 58 855 989 3063 587 698 1318 Wait 498 | . 43 47 352 6 4 46 Move 6097 | 47 700 879 2585 527 494 865 Hop 8 | . . . 8 . . . Pick Up 150 | 5 24 5 44 8 16 48 Fast Attach 49 | 6 1 . 1 2 13 26 Attach 47 | . . 2 1 8 9 27 Detach 3 | . . . . . . 3 Swap 94 | . 16 3 10 3 8 54 Drop 142 | . 26 6 51 2 13 44 Fire 424 | . 45 47 11 29 106 186 Melee 14 | . . . . 2 8 4 Ram 5 | . . . . . . 5 Kick 1 | . . . . . . 1 Crush . | . . . . . . . Escape Stasis 10 | . . . . . 10 . Rewire 26 | . . . . . 17 9 Trap . | . . . . . . . Miscellaneous . | . . . . . . . Route ------- -11/Scrapyard -10/Materials (discovered 5 exits: [*Mat x3] / [*Min] / *Sub) -10/Subcaves (discovered 2 exits: [*Mat] / *Scr) -9/Scraptown (discovered 2 exits: *Fac x2) -6/Factory -6/Garrison -5/Factory (discovered 1 exit: [*Fac]) History --------- Turn | Location | Event 2 | -11/Scrapyard | Met Revision 17 11 | -11/Scrapyard | Discovered new exit (range 16) 60 | -11/Scrapyard | Entered Materials 230 | -10/Materials | Discovered new exit (range 6) 318 | -10/Materials | Build established: Mutant 559 | -10/Materials | Discovered new exit (range 8) 592 | -10/Materials | Discovered new exit (range 16) 753 | -10/Materials | Discovered new exit (range 8) 1053 | -10/Materials | Discovered new exit (range 16) 1103 | -10/Materials | Entered Subcaves 1104 | -10/Subcaves | Approached by a straggling Scientist 1263 | -10/Subcaves | Discovered new exit (range 12) 1570 | -10/Subcaves | Disturbed a concealed Subdweller 1685 | -10/Subcaves | A swath of the cavern ceiling suddenly collapsed 2004 | -10/Subcaves | Shifting Twisted Machinery released Flamer 2167 | -10/Subcaves | Visited 4L-MR0's lab 2183 | -10/Subcaves | Found Prototype Protection 2188 | -10/Subcaves | Identified Gun Armor 2237 | -10/Subcaves | Scientist uncovered a shortcut to Scraptown 2263 | -10/Subcaves | Entered Scraptown 2263 | -9/Scraptown | System corruption cleaned by C-Scrubber 2313 | -9/Scraptown | Received an X-ray algorithm 2322 | -9/Scraptown | Ran an X-ray algorithm 2507 | -9/Scraptown | Discovered new exit (range 11) 2574 | -9/Scraptown | Visited Spacefarers 2635 | -9/Scraptown | Visited TADAMA 2655 | -9/Scraptown | Visited IN-MT5's Study 2771 | -9/Scraptown | Visited Fellowship of the Rings 2796 | -9/Scraptown | Visited UFD Registry 2796 | -9/Scraptown | Registered with UFD as "Boltthruster" 2810 | -9/Scraptown | Visited Cave Peace 2871 | -9/Scraptown | Visited Symbiants 2941 | -9/Scraptown | Visited Analyses Database 2977 | -9/Scraptown | Visited Derelict Rescue Squad 3519 | -9/Scraptown | Visited Awakened 3768 | -9/Scraptown | Visited DA-N13 Charitable Foundation 3783 | -9/Scraptown | Found DCF Scrap (28 items) 3832 | -9/Scraptown | Visited Junk Repository 3890 | -9/Scraptown | Visited Botcube Research 3920 | -9/Scraptown | Found Botcube 4171 | -9/Scraptown | Build established: Hacker-Mutant 4205 | -9/Scraptown | Visited Observation Area 4222 | -9/Scraptown | Visited Science Guys 4329 | -9/Scraptown | Visited Infowarlord's Domain 4337 | -9/Scraptown | Found Exp. Signal Interpreter 4362 | -9/Scraptown | Visited Junk Repository 4694 | -9/Scraptown | Botcube activated 4710 | -9/Scraptown | Botcube completed mutation into core form, armed with 1 gun, 1 cannon. 5291 | -9/Scraptown | Met Optimus 5291 | -9/Scraptown | Accepted into 0bPrime 5368 | -9/Scraptown | Civil war broke out across Scraptown 5393 | -9/Scraptown | Discovered new exit (range 8) 5440 | -9/Scraptown | Lost 5 allies 5471 | -9/Scraptown | Found System Spiker 5501 | -9/Scraptown | Optimus destroyed in the chaos of civil war 5582 | -9/Scraptown | Core integrity fell below 50% 5632 | -9/Scraptown | Entered Factory 5632 | -6/Factory | Evolved 8 slots: Power x1, Propulsion x4, Utility x3 5638 | -6/Factory | Attached Gun Armor, gained temporary slots: Weapon x2 6173 | -6/Factory | Build established: Scavenger-Tank 6283 | -6/Factory | Identified exit to Garrison 6283 | -6/Factory | Entered Garrison 6389 | -6/Garrison | Triggered checkpoint 6465 | -6/Garrison | Crushed by falling debris 6515 | -6/Garrison | Installed Relay Interface Framework 6715 | -6/Garrison | Garrison Relay disabled 6793 | -6/Garrison | Triggered checkpoint 6796 | -6/Garrison | System corruption reached 10% 6874 | -6/Garrison | Lost 9 parts (1p5n2u1w) 7112 | -6/Garrison | Garrison Relay disabled 7194 | -6/Garrison | Build established: Scavenger-Mutant 7199 | -6/Garrison | Lost 3 allies 7272 | -6/Garrison | Discovered new exit (range 12) 7307 | -6/Garrison | Phase Generator disabled 7464 | -6/Garrison | Entered Factory 7464 | -5/Factory | Evolved 2 slots: Utility x1, Weapon x1 7772 | -5/Factory | Build established: Scavenger-Tank 7859 | -5/Factory | Repaired Myomer Leg 8171 | -5/Factory | System corruption reached 10% 8236 | -5/Factory | Lost 8 parts (1p4n2u1w) 8699 | -5/Factory | Discovered new exit (range 7) 9009 | -5/Factory | Lost 6 parts (2n2u2w) 9270 | -5/Factory | System corruption reached 30% 9372 | -5/Factory | Build established: Hauler-Gunner 9378 | -5/Factory | Found Active Sensor Suite 9565 | -5/Factory | Cargo convoy interrupted 9661 | -5/Factory | Core integrity fell below 50% 9677 | -5/Factory | Lost 3 allies 9678 | -5/Factory | P-70 Sage assimilated allied Disruptor 6a 9710 | -5/Factory | Released all parts (6) 9714 | -5/Factory | Core integrity fell below 20% 9778 | -5/Factory | Lost 14 parts (2p7n2u3w) 9780 | -5/Factory | Destroyed by Disruptor 6a with Arc Projector Last Messages --------------- corruption cleaned. 09747_ Slug penetrates Fusion Modulator. 09747_ Carbon-fiber Leg destroyed. 09750_ System corrupted: Heat flow error (+139). 09750_ Penetrated by Slug. 09753_ Critical hit (Destroy). 09754_ Slammed into H-66 Slayer. 09754_ Destabilizing: System corrupted (+2). [Achievement: Z1$+NX3F=JRE3_ZNQR] 09755_ Slammed into H-66 Slayer. 09756_ Slug penetrates Wall. 09761_ Acquired Adv. Heat Sink. 09762_ Penetrated by Slug. 09763_ Acquired Structural Scanner. 09766_ System corrupted: Energy discharge (-21). 09773_ Acquired Wheel. 09775_ Acquired Adv. Terrain Scan Processor. 09777_ Acquired Lgt. Fission Core. 09777_ R-10 Processor collects Welding Torch. 09779_ Acquired Imp. Deuterium Engine. Map ----- +----------------------------------------------------+ | ??????????? ???????????##+#####??????????????????? | | ??????????? ??????????? ??????????????????? | | ########??? ???????????? *|% ???????????????????? | | / #??# ???????????? %!=% ???????????????????? | | #??# ????????????#==!##+??????????????????? | | #??# ##??????????#%[=# ??????????????????? | | """ #?? ######????#=*%# ?""????????????????? | | """ #?? #????#=%=#??""????????????????? | | """ #?? < #????#%*!#?""?????????????????? | | +########? ? % ##???#% %# "??????????????????? | | # #? ?# #?? # # ???????????????????? | | + ""#?###?# % #? #| u# ???????????????????? | | # ""#?# #### ##? # # ???????????????????? | | # T"### ## ### #*% # ? ?????????????????? | | ^^^# ""# #### # ## u## #######???????????? | | # "# =% # ###### u# !! ! ## ??????????? | | # # = # # !! #? ?????????? | | # # ! %+ +! #? ""??????? | | #[ # %# = # ! #?? """?????? | | ###### # % # #??? """????? | | #????#% # * # #???? """???? | | #????####"### ########???? ???! ? | | #??????? # # !*[ ######### ??? ? !!?? | | #+###????? ### |*||=!! # ####### ???? | | #???? # %[=!=!!! ###! #######+####+# | | """ #???" # [[%%!!!@ ###! ! # | | """ #?? + %=[!!!*!! xp % # | | """ #?? """ # !#!##########! #### | | #? """ # # ####* ####### #### | | """ #? ???" ## ##[ ??######/######### ##[[ | | """ #????? ## ## ?# ##????#% ##[[ | | """ #??????##?# ## ??# """ ##????# ##[[ | | #?????????# #?? ?????# """ ##???## ##%= | | ##+##????????## ##???????# """ ##???# =# % | | ?# #?????????# #???????# ##???# #%[ | | ## ########### "" #???????# """ ##???# " += | | %! "T +???????# """ ##???# # * | | ##+########### #???????# """ #????# # | | ! #???# #???????# #????### ### | | ^ #???#######???????##########??????# #?# | | #?????????????????????????????????# #?# | | [[[ #?????????????????????????????????# #?# | | [[[ !#?????????????????????????????????# #?### | | [[^ #?????????????????????????????????# #???? | | [ #?????????????????????????????????# #???? | | ! #?????????????????????????????????# #???? | | ##########?????????????????????????????????# #???? | | ???????????????????????????????????????????# #???? | | ???????????????????????????????????????????# #???? | | ???????????????????????????????????????????# #???? | +----------------------------------------------------+ Best States ------------- Heat Dissipation 117 Energy Generation 31 Energy Capacity 480 Matter Stores 300 Matter Capacity 300 Sight Range 16 Terrain Scan Density 10 Armor Coverage 600 Resistance: KI 40 Resistance: TH 20 Resistance: EX 20 Resistance: EM 20 Resistance: I 20 Resistance: S 20 Resistance: P 20 Melee Speed Boost 20 Phase Shifting 5 Evasion (%) 55 Recoil Reduction 6 Offensive Hacking 10 Defensive Hacking 24 Item Schematics ----------------- Signal Interpreter | -10/Materials | Hacked Cooling System | -6/Factory | Scanalyzed Robot Schematics ------------------ None Fabricated ------------ Nothing Repaired ---------- Myomer Leg | 61% | -5/Factory Alien Tech Used ----------------- None Achievements -------------- Z1$+NX3F=JRE3_ZNQR Challenges ------------ None Game ------ Seed EnhancedAssaultEdition Manual? 0 Play Time 01:38:12 Cumulative 237.7 hours Start 2025.05.10 @ 09:53:50 End 2025.05.10 @ 12:54:32 Sessions 1 Manual Loads 0 Difficulty Adventurer Special Mode None Game No. 270 Rogue 0 Adventurer 270 Explorer 0 Win Type - Total 0 Types 0/0/0/0/0/0/0/0/0/0 Lore% 70 Gallery% 57 Achievement% 49 Wizard Run 0 Options --------- Layout 2 ASCII 0 Keyboard 0 Movement Mouse Keybinds 0 Fullscreen 2 Font 48/Smallcaps Map View 50x44 Zoom Use 0% Tactical HUD 1 Map Filters NONE Filters NONE Steam 1 RUN: 76c39260-ca1e-478c-9224-56867983c1c7